fUSD/lending_fUSD_20250806
["ID","MTS","AMOUNT","RATE_DAILY","PERIOD"]
[377562769,1754442694128,-400.0,0.00036438,14]
[377562770,1754442694137,-1380.5,0.00036438,14]
[377562771,1754442694146,-1463.79,0.00036438,14]
[377562772,1754442694155,-489.01,0.00036438,14]
[377562773,1754442694165,-400.0,0.00036438,14]
[377562774,1754442694174,-2205.35,0.00036438,14]
[377562775,1754442694185,-2207.6,0.00036438,14]
[377562776,1754442694194,-400.0,0.00036438,14]
[377562777,1754442694203,-491.72,0.00036438,14]
[377562778,1754442694212,-400.0,0.00036438,14]
[377562779,1754442694224,-414.28,0.00036438,14]
[377562780,1754442694233,-400.0,0.00036438,14]
[377562781,1754442694243,-400.0,0.00036438,14]
[377562782,1754442694252,-1972.25,0.00036438,14]
[377562783,1754442694263,-1215.67,0.00036438,14]
[377562784,1754442694272,-400.0,0.00036438,14]
[377562785,1754442694281,-794.93,0.00036438,14]
[377562786,1754442694290,-400.0,0.00036438,14]
[377562787,1754442694301,-1015.96,0.00036438,14]
[377562788,1754442694311,-422.44,0.00036438,14]
[377562789,1754442694320,-2085.19,0.00036438,14]
[377562790,1754442694330,-1312.75,0.00036438,14]
[377562791,1754442694339,-400.0,0.00036438,14]
[377562792,1754442694349,-3346.64,0.00036438,14]
[377562793,1754442694358,-400.0,0.00036438,14]
[377562794,1754442694368,-777.29,0.00036438,14]
[377562795,1754442694377,-1172.709491,0.00036438,14]
[377562796,1754442694387,-400.0,0.00036438,14]
[377562797,1754442694397,-400.0,0.00036438,14]
[377562798,1754442694406,-283.58,0.00036438,14]
[377562799,1754442694416,-932.98,0.00036438,14]
[377562800,1754442694425,-2888.34,0.00036438,14]
[377562801,1754442694437,-1292.66,0.00036438,14]
[377562802,1754442694447,-934.564391,0.00036438,14]
[377562803,1754442694456,-1868.41,0.00036438,14]
[377562804,1754442694466,-2405.61,0.00036438,14]
[377562805,1754442694475,-400.0,0.00036438,14]
[377562806,1754442694484,-1269.3,0.00036438,14]
[377562807,1754442694494,-709.55,0.00036438,14]
[377562808,1754442694503,-1290.39,0.00036438,14]
[377562809,1754442694513,-1328.676612,0.00036438,14]
[377562810,1754442694522,-400.0,0.00036438,14]
[377562811,1754442694531,-400.0,0.00036438,14]
[377562812,1754442694541,-400.0,0.00036438,14]
[377562813,1754442694550,-400.0,0.00036438,14]
[377562814,1754442694559,-400.0,0.00036438,14]
[377562815,1754442694568,-400.0,0.00036438,14]
[377562816,1754442694577,-400.0,0.00036438,14]
[377562817,1754442694586,-437.13,0.00036438,14]
[377562818,1754442694595,-935.04,0.00036438,14]
[377562819,1754442694605,-400.0,0.00036438,14]
[377562820,1754442694614,-1708.33,0.00036438,14]
[377562821,1754442694623,-400.0,0.00036438,14]
[377562822,1754442694634,-1761.05,0.00036438,14]
[377562823,1754442694643,-1704.71,0.00036438,14]
[377562824,1754442694652,-2290.75,0.00036438,14]
[377562825,1754442694661,-1762.0,0.00036438,14]
[377562826,1754442694670,-672.68,0.00036438,14]
[377562827,1754442694679,-527.32,0.00036438,14]
[377562828,1754442694688,-183.443369,0.00036438,14]
[377562829,1754442694697,-994.04,0.00036438,14]
[377562830,1754442694706,-400.0,0.00036438,14]
[377562831,1754442694715,-400.0,0.00036438,14]
[377562832,1754442694724,-400.0,0.00036438,14]
[377562833,1754442694733,-400.0,0.00036438,14]
[377562834,1754442694743,-154.84997577,0.00036438,14]
[377562835,1754442694752,-400.0,0.00036438,14]
[377562836,1754442694761,-2469.75,0.00036438,14]
[377562837,1754442694771,-400.0,0.00036438,14]
[377562838,1754442694780,-400.0,0.00036438,14]
[377562839,1754442694790,-400.0,0.00036438,14]
[377562840,1754442694799,-400.0,0.00036438,14]
[377562841,1754442694808,-2205.99,0.00036438,14]
[377562842,1754442694817,-400.0,0.00036438,14]
[377562843,1754442694826,-400.0,0.00036438,14]
[377562844,1754442694835,-779.79,0.00036438,14]
[377562845,1754442694845,-400.0,0.00036438,14]
[377562846,1754442694854,-1057.03,0.00036438,14]
[377562847,1754442694863,-400.0,0.00036438,14]
[377562848,1754442694873,-1461.09,0.00036438,14]
[377562849,1754442694882,-2509.3,0.00036438,14]
[377562850,1754442694891,-2247.66,0.00036438,14]
[377562851,1754442694900,-400.0,0.00036438,14]
[377562852,1754442694910,-1264.35,0.00036438,14]
[377562853,1754442694919,-400.0,0.00036438,14]
[377562854,1754442694930,-579.3,0.00036438,14]
[377562855,1754442694940,-2543.8,0.00036438,14]
[377562856,1754442694949,-927.28,0.00036438,14]
[377562857,1754442694959,-2035.35,0.00036438,14]
[377562858,1754442694969,-400.0,0.00036438,14]
[377562859,1754442694978,-1617.19,0.00036438,14]
[377562860,1754442694987,-267.89510158,0.00036438,14]
[377562861,1754442694996,-430.86,0.00036438,14]
[377562862,1754442695005,-400.0,0.00036438,14]
[377562863,1754442695015,-2035.44,0.00036438,14]
[377562864,1754442695025,-400.0,0.00036438,14]
[377562865,1754442695034,-742.22,0.00036438,14]
[377562866,1754442695043,-1576.22,0.00036438,14]
[377562867,1754442695051,-1564.14,0.00036438,14]
[377562868,1754442695061,-400.0,0.00036438,14]
[377562869,1754442695070,-1123.31,0.00036438,14]
[377562870,1754442695079,-423.59,0.00036438,14]
[377562871,1754442695092,-678.6,0.00036438,14]
[377562872,1754442695102,-1765.72,0.00036438,14]
[377562873,1754442695111,-1488.56,0.00036438,14]
[377562874,1754442695120,-1011.21,0.00036438,14]
[377562875,1754442695129,-1388.38,0.00036438,14]
[377562876,1754442695139,-400.0,0.00036438,14]
[377562877,1754442695148,-523.37,0.00036438,14]
[377562878,1754442695157,-400.0,0.00036438,14]
[377562879,1754442695166,-409.96,0.00036438,14]
[377562880,1754442695175,-1713.82,0.00036438,14]
[377562881,1754442695188,-1711.85,0.00036438,14]
[377562882,1754442695197,-1839.78,0.00036438,14]
[377562883,1754442695206,-3679.84,0.00036438,14]
[377562884,1754442695216,-2131.4,0.00036438,14]
[377562885,1754442695229,-790.57,0.00036438,14]
[377562886,1754442695238,-1776.87,0.00036438,14]
[377562887,1754442695247,-400.0,0.00036438,14]
[377562888,1754442695256,-1649.7,0.00036438,14]
[377562889,1754442695267,-1115.45,0.00036438,14]
[377562890,1754442695276,-400.0,0.00036438,14]
[377562891,1754442695285,-705.6,0.00036438,14]
[377562892,1754442695294,-963.25,0.00036438,14]
[377562893,1754442695304,-400.0,0.00036438,14]
[377562894,1754442695313,-2393.93,0.00036438,14]
[377562895,1754442695322,-496.79,0.00036438,14]
[377562896,1754442695331,-400.0,0.00036438,14]
[377562897,1754442695340,-724.03,0.00036438,14]
[377562898,1754442695350,-2090.88,0.00036438,14]
[377562899,1754442695360,-497.84,0.00036438,14]
[377562900,1754442695368,-400.0,0.00036438,14]
[377562901,1754442695378,-400.0,0.00036438,14]
[377562902,1754442695388,-1967.34,0.00036438,14]
[377562903,1754442695397,-797.29,0.00036438,14]
[377562904,1754442695406,-400.0,0.00036438,14]
[377562905,1754442695416,-400.0,0.00036438,14]
[377562906,1754442695425,-400.0,0.00036438,14]
[377562907,1754442695436,-400.0,0.00036438,14]
[377562908,1754442695446,-602.25,0.00036438,14]
[377562909,1754442695456,-2237.67,0.00036438,14]
[377562910,1754442695465,-284.26874656,0.00036438,14]
[377562911,1754442695475,-534.96,0.00036438,14]
[377562912,1754442695484,-1943.05,0.00036438,14]
[377562913,1754442695493,-400.0,0.00036438,14]
[377562914,1754442695502,-1777.23,0.00036438,14]
[377562915,1754442695512,-525.4,0.00036438,14]
[377562916,1754442695521,-151.0,0.00036438,7]
[377562917,1754442695531,-400.0,0.00036438,14]
[377562918,1754442695540,-400.0,0.00036438,14]
[377562919,1754442695550,-400.0,0.00036438,14]
[377562920,1754442695559,-400.0,0.00036438,14]
[377562921,1754442695568,-400.0,0.00036438,14]
[377562922,1754442695578,-1704.16,0.00036438,14]
[377562923,1754442695587,-755.14,0.00036438,14]
[377562924,1754442695596,-458.11,0.00036438,14]
[377562925,1754442695605,-1361.3,0.00036438,14]
[377562926,1754442695614,-1657.6,0.00036438,14]
[377562927,1754442695623,-400.0,0.00036438,14]
[377562928,1754442695632,-400.0,0.00036438,14]
[377562929,1754442695642,-464.59,0.00036438,14]
[377562930,1754442695651,-400.0,0.00036438,14]
[377562931,1754442695660,-1359.03,0.00036438,14]
[377562932,1754442695671,-928.51,0.00036438,14]
[377562933,1754442695680,-447.16,0.00036438,14]
[377562934,1754442695689,-400.0,0.00036438,14]
[377562935,1754442695699,-935.48,0.00036438,14]
[377562936,1754442695708,-400.0,0.00036438,14]
[377562937,1754442695717,-1737.65,0.00036438,14]
[377562938,1754442695726,-475.44,0.00036438,14]
[377562939,1754442695735,-964.89,0.00036438,14]
[377562940,1754442695744,-400.0,0.00036438,14]
[377562941,1754442695753,-2063.67,0.00036438,14]
[377562942,1754442695763,-2309.93,0.00036438,14]
[377562943,1754442695772,-1013.66,0.00036438,14]
[377562944,1754442695781,-1126.47,0.00036438,14]
[377562945,1754442695790,-984.53,0.00036438,14]
[377562946,1754442695799,-1638.91,0.00036438,14]
[377562947,1754442695809,-400.0,0.00036438,14]
[377562948,1754442695818,-1286.0,0.00036438,14]
[377562949,1754442695828,-1466.99,0.00036438,14]
[377562950,1754442695838,-400.0,0.00036438,14]
[377562951,1754442695847,-857.1,0.00036438,14]
[377562952,1754442695856,-1077.2,0.00036438,14]
[377562953,1754442695866,-962.77,0.00036438,14]
[377562954,1754442695875,-400.0,0.00036438,14]
[377562955,1754442695885,-400.0,0.00036438,14]
[377562956,1754442695895,-1979.59,0.00036438,14]
[377562957,1754442695904,-1044.87,0.00036438,14]
[377562958,1754442695913,-939.42,0.00036438,14]
[377562959,1754442695923,-1728.26,0.00036438,14]
[377562960,1754442695935,-522.88347909,0.00036438,14]
[377562961,1754442695944,-832.44,0.00036438,14]
[377562962,1754442695954,-1020.28,0.00036438,14]
[377562963,1754442695963,-1048.15,0.00036438,14]
[377562964,1754442695973,-1132.04,0.00036438,14]
[377562965,1754442695982,-400.0,0.00036438,14]
[377562966,1754442695991,-400.0,0.00036438,14]
[377562967,1754442696001,-668.93,0.00036438,14]
[377562968,1754442696010,-457.75,0.00036438,14]
[377562969,1754442696019,-2214.94,0.00036438,14]
[377562970,1754442696029,-1666.74,0.00036438,14]
[377562971,1754442696039,-400.0,0.00036438,14]
[377562972,1754442696048,-2316.2,0.00036438,14]
[377562973,1754442696057,-923.76,0.00036438,14]
[377562974,1754442696066,-728.39,0.00036438,14]
[377562975,1754442696233,-400.0,0.00036438,14]
[377562976,1754442696253,-1498.11,0.00036438,14]
[377562977,1754442696264,-1040.17,0.00036438,14]
[377562978,1754442696274,-400.0,0.00036438,14]
[377562979,1754442696283,-400.0,0.00036438,14]
[377562980,1754442696294,-2864.39,0.00036438,14]
[377562981,1754442696307,-400.0,0.00036438,14]
[377562982,1754442696317,-1180.49,0.00036438,14]
[377562983,1754442696326,-400.0,0.00036438,14]
[377562984,1754442696336,-1311.83,0.00036438,14]
[377562985,1754442696346,-1834.0,0.00036438,14]
[377562986,1754442696356,-400.0,0.00036438,14]
[377562987,1754442696366,-1955.23,0.00036438,14]
[377562988,1754442696376,-538.12,0.00036438,14]
[377562989,1754442696387,-400.0,0.00036438,14]
[377562990,1754442696397,-1244.43,0.00036438,14]
[377562991,1754442696407,-400.0,0.00036438,14]
[377562992,1754442696416,-1662.24,0.00036438,14]
[377562993,1754442696425,-657.65,0.00036438,14]
[377562994,1754442696436,-953.1,0.00036438,14]
[377562995,1754442696446,-815.87,0.00036438,14]
[377562996,1754442696455,-400.0,0.00036438,14]
[377562997,1754442696464,-563.55,0.00036438,14]
[377562998,1754442696474,-400.0,0.00036438,14]
[377562999,1754442696483,-400.0,0.00036438,14]
[377563000,1754442696493,-914.6,0.00036438,14]
[377563001,1754442696503,-1102.55,0.00036438,14]
[377563002,1754442696514,-441.98180534,0.00036438,14]
[377563003,1754442696523,-400.0,0.00036438,14]
[377563004,1754442696533,-1700.2,0.00036438,14]
[377563005,1754442696542,-400.0,0.00036438,14]
[377563006,1754442696552,-525.87,0.00036438,14]
[377563007,1754442696561,-400.0,0.00036438,14]
[377563008,1754442696571,-1677.48,0.00036438,14]
[377563009,1754442696580,-615.99,0.00036438,14]
[377563010,1754442696590,-1122.22,0.00036438,14]
[377563011,1754442696599,-400.0,0.00036438,14]
[377563012,1754442696608,-1673.07,0.00036438,14]
[377563013,1754442696618,-691.75,0.00036438,14]
[377563014,1754442696627,-1339.53,0.00036438,14]
[377563015,1754442696636,-400.0,0.00036438,14]
[377563016,1754442696646,-3039.76,0.00036438,14]
[377563017,1754442696655,-1742.18,0.00036438,14]
[377563018,1754442696664,-400.0,0.00036438,14]
[377563019,1754442696673,-3124.83,0.00036438,14]
[377563020,1754442696685,-2935.07,0.00036438,14]
[377563021,1754442696695,-400.0,0.00036438,14]
[377563022,1754442696705,-220.0,0.00036438,14]
[377563023,1754442696714,-400.0,0.00036438,14]
[377563024,1754442696723,-1838.67,0.00036438,14]
[377563025,1754442696733,-609.9,0.00036438,14]
[377563026,1754442696743,-400.0,0.00036438,14]
[377563027,1754442696752,-400.0,0.00036438,14]
[377563028,1754442696762,-991.95,0.00036438,14]
[377563029,1754442696771,-1655.86,0.00036438,14]
[377563030,1754442696781,-3327.96,0.00036438,14]
[377563031,1754442696790,-400.0,0.00036438,14]
[377563032,1754442696800,-1352.76,0.00036438,14]
[377563033,1754442696809,-2954.23,0.00036438,14]
[377563034,1754442696820,-566.14,0.00036438,14]
[377563035,1754442696829,-686.21,0.00036438,14]
[377563036,1754442696839,-400.0,0.00036438,14]
[377563037,1754442696849,-400.0,0.00036438,14]
[377563038,1754442696858,-438.37,0.00036438,14]
[377563039,1754442696867,-1748.91,0.00036438,14]
[377563040,1754442696876,-2547.69,0.00036438,14]
[377563041,1754442696885,-400.0,0.00036438,14]
[377563042,1754442696895,-3490.04,0.00036438,14]
[377563043,1754442696904,-1448.31,0.00036438,14]
[377563044,1754442696913,-400.0,0.00036438,14]
[377563045,1754442696922,-400.0,0.00036438,14]
[377563046,1754442696933,-328.77195851,0.00036438,14]
[377563047,1754442696943,-400.0,0.00036438,14]
[377563048,1754442696953,-1267.64,0.00036438,14]
[377563049,1754442696963,-1802.79,0.00036438,14]
[377563050,1754442696973,-784.29,0.00036438,14]
[377563051,1754442696983,-400.0,0.00036438,14]
[377563052,1754442696992,-400.0,0.00036438,14]
[377563053,1754442697002,-1837.22,0.00036438,14]
[377563054,1754442697012,-400.0,0.00036438,14]
[377563055,1754442697022,-400.0,0.00036438,14]
[377563056,1754442697032,-634.12,0.00036438,14]
[377563057,1754442697041,-4030.7,0.00036438,14]
[377563058,1754442697050,-3271.39,0.00036438,14]
[377563059,1754442697060,-1431.01,0.00036438,14]
[377563060,1754442697069,-1890.7,0.00036438,14]
[377563061,1754442697079,-423.14,0.00036438,14]
[377563062,1754442697089,-423.89744566,0.00036438,14]
[377563063,1754442697098,-518.39,0.00036438,14]
[377563064,1754442697108,-799.06,0.00036438,14]
[377563065,1754442697118,-1061.15,0.00036438,14]
[377563066,1754442697127,-2300.35,0.00036438,14]
[377563067,1754442697136,-400.0,0.00036438,14]
[377563068,1754442697145,-1973.9,0.00036438,14]
[377563069,1754442697155,-414.66,0.00036438,14]
[377563070,1754442697165,-649.25,0.00036438,14]
[377563071,1754442697174,-2403.69,0.00036438,14]
[377563072,1754442697184,-400.0,0.00036438,14]
[377563073,1754442697194,-400.0,0.00036438,14]
[377563074,1754442697203,-400.0,0.00036438,14]
[377563075,1754442697212,-1824.64,0.00036438,14]
[377563076,1754442697222,-1727.1,0.00036438,14]
[377563077,1754442697234,-1000.4,0.00036438,14]
[377563078,1754442697243,-1599.77,0.00036438,14]
[377563079,1754442697253,-400.0,0.00036438,14]
[377563080,1754442697262,-242.695014,0.00036438,7]
[377563081,1754442697274,-1861.93,0.00036438,14]
[377563082,1754442697283,-400.0,0.00036438,14]
[377563083,1754442697292,-1144.07,0.00036438,14]
[377563084,1754442697303,-1695.92,0.00036438,14]
[377563085,1754442697312,-242.695014,0.00036438,7]
[377563086,1754442697321,-4450.65,0.00036438,14]
[377563087,1754442697332,-400.0,0.00036438,14]
[377563088,1754442697342,-1706.8,0.00036438,14]
[377563089,1754442697351,-1430.5,0.00036438,14]
[377563090,1754442697361,-932.87,0.00036438,14]
[377563091,1754442697370,-779.66,0.00036438,14]
[377563092,1754442697380,-400.0,0.00036438,14]
[377563093,1754442697390,-951.39,0.00036438,14]
[377563094,1754442697400,-421.9,0.00036438,14]
[377563095,1754442697410,-2337.94,0.00036438,14]
[377563096,1754442697420,-242.695014,0.00036438,7]
[377563097,1754442697429,-575.559924,0.00036438,7]
[377563098,1754442697439,-242.695014,0.00036438,7]
[377563099,1754442697449,-575.559924,0.00036438,7]
[377563100,1754442697459,-400.0,0.00036438,14]
[377563101,1754442697468,-400.0,0.00036438,14]
[377563102,1754442697478,-589.79,0.00036438,14]
[377563103,1754442697487,-1533.82,0.00036438,14]
[377563104,1754442697497,-2493.45,0.00036438,14]
[377563105,1754442697507,-400.0,0.00036438,14]
[377563106,1754442697516,-2089.35,0.00036438,14]
[377563107,1754442697525,-2218.99,0.00036438,14]
[377563108,1754442697535,-400.0,0.00036438,14]
[377563109,1754442697547,-841.47,0.00036438,14]
[377563110,1754442697557,-575.559924,0.00036438,7]
[377563111,1754442697569,-400.0,0.00036438,7]
[377563112,1754442697580,-575.559924,0.00036438,7]
[377563113,1754442697589,-868.89,0.00036438,14]
[377563114,1754442697600,-895.39,0.00036438,14]
[377563115,1754442697610,-3396.05,0.00036438,14]
[377563116,1754442697620,-1716.54,0.00036438,14]
[377563117,1754442697630,-400.0,0.00036438,14]
[377563118,1754442697641,-400.0,0.00036438,14]
[377563119,1754442697652,-1340.56,0.00036438,14]
[377563120,1754442697663,-400.0,0.00036438,14]
[377563121,1754442697674,-1353.01,0.00036438,14]
[377563122,1754442697689,-1603.32,0.00036438,14]
[377563123,1754442697699,-2276.37,0.00036438,14]
[377563124,1754442697709,-400.0,0.00036438,14]
[377563125,1754442697719,-400.0,0.00036438,14]
[377563126,1754442697728,-583.8,0.00036438,14]
[377563127,1754442697738,-1428.62,0.00036438,14]
[377563128,1754442697747,-1629.04,0.00036438,14]
[377563129,1754442697757,-2751.15,0.00036438,14]
[377563130,1754442697766,-772.55,0.00036438,14]
[377563131,1754442697775,-878.31,0.00036438,14]
[377563132,1754442697785,-400.0,0.00036438,14]
[377563133,1754442697794,-1325.14,0.00036438,14]
[377563134,1754442697804,-400.0,0.00036438,14]
[377563135,1754442697814,-1622.11,0.00036438,14]
[377563136,1754442697824,-444.96,0.00036438,14]
[377563137,1754442697833,-1723.73,0.00036438,14]
[377563138,1754442697843,-690.57,0.00036438,14]
[377563139,1754442697853,-1723.73,0.00036438,14]
[377563140,1754442697863,-5774.11,0.00036438,14]
[377563141,1754442697873,-1725.28,0.00036438,14]
[377563142,1754442697883,-2273.8,0.00036438,14]
[377563143,1754442697893,-400.0,0.00036438,14]
[377563144,1754442697903,-1180.48,0.00036438,14]
[377563145,1754442697912,-1303.85,0.00036438,14]
[377563146,1754442697922,-2418.19,0.00036438,14]
[377563147,1754442697934,-1418.71,0.00036438,14]
[377563148,1754442697945,-1483.39,0.00036438,14]
[377563149,1754442697954,-1589.73,0.00036438,14]
[377563150,1754442697964,-430.0,0.00036438,14]
[377563151,1754442697974,-400.0,0.00036438,14]
[377563152,1754442697983,-821.53,0.00036438,14]
[377563153,1754442697993,-1287.81,0.00036438,14]
[377563154,1754442698002,-1703.45,0.00036438,14]
[377563155,1754442698012,-1498.57,0.00036438,14]
[377563156,1754442698021,-1983.78,0.00036438,14]
[377563157,1754442698031,-400.0,0.00036438,14]
[377563158,1754442698040,-1679.65,0.00036438,14]
[377563159,1754442698049,-3157.63,0.00036438,14]
[377563160,1754442698058,-687.98,0.00036438,14]
[377563161,1754442698068,-2415.95,0.00036438,14]
[377563162,1754442698077,-2307.34,0.00036438,14]
[377563163,1754442698087,-382.60071091,0.00036438,14]
[377563164,1754442698097,-2679.13,0.00036438,14]
[377563165,1754442698106,-3177.96,0.00036438,14]
[377563166,1754442698115,-400.0,0.00036438,14]
[377563167,1754442698125,-747.81,0.00036438,14]
[377563168,1754442698134,-1953.14,0.00036438,14]
[377563169,1754442698143,-400.0,0.00036438,14]
[377563170,1754442698153,-404.81,0.00036438,14]
[377563171,1754442698162,-428.72,0.00036438,14]
[377563172,1754442698172,-1927.57,0.00036438,14]
[377563173,1754442698183,-697.32,0.00036438,14]
[377563174,1754442698193,-400.0,0.00036438,14]
[377563175,1754442698202,-530.0,0.00036438,14]
[377563176,1754442698211,-555.16,0.00036438,14]
[377563177,1754442698220,-1949.72,0.00036438,14]
[377563178,1754442698234,-2417.38,0.00036438,14]
[377563179,1754442698243,-1541.25,0.00036438,14]
[377563180,1754442698252,-400.0,0.00036438,14]
[377563181,1754442698262,-2048.47,0.00036438,14]
[377563182,1754442698271,-2683.89,0.00036438,14]
[377563183,1754442698280,-551.19,0.00036438,14]
[377563184,1754442698289,-2392.06,0.00036438,14]
[377563185,1754442698300,-1796.75,0.00036438,14]
[377563186,1754442698309,-2641.67,0.00036438,14]
[377563187,1754442698318,-1705.98,0.00036438,14]
[377563188,1754442698328,-400.0,0.00036438,14]
[377563189,1754442698337,-1037.19,0.00036438,14]
[377563190,1754442698346,-872.94,0.00036438,14]
[377563191,1754442698355,-527.27,0.00036438,14]
[377563192,1754442698719,-627.84,0.00036438,14]
[377563193,1754442698735,-2665.06,0.00036438,14]
[377563194,1754442698744,-1314.63,0.00036438,14]
[377563195,1754442698753,-400.0,0.00036438,14]
[377563196,1754442698763,-1710.7,0.00036438,14]
[377563197,1754442698773,-427.48,0.00036438,14]
[377563198,1754442698782,-1376.11,0.00036438,14]
[377563199,1754442698792,-400.0,0.00036438,14]
[377563200,1754442698801,-2454.52,0.00036438,14]
[377563201,1754442698811,-765.61,0.00036438,14]
[377563202,1754442698820,-1470.65,0.00036438,14]
[377563203,1754442698829,-540.65,0.00036438,14]
[377563204,1754442698838,-2952.63,0.00036438,14]
[377563205,1754442698848,-2318.46,0.00036438,14]
[377563206,1754442698857,-400.0,0.00036438,14]
[377563207,1754442698867,-400.0,0.00036438,14]
[377563208,1754442698876,-1988.57,0.00036438,14]
[377563209,1754442698886,-400.0,0.00036438,14]
[377563210,1754442698895,-1460.27,0.00036438,14]
[377563211,1754442698904,-845.33,0.00036438,14]
[377563212,1754442698914,-400.0,0.00036438,14]
[377563213,1754442698923,-542.49,0.00036438,14]
[377563214,1754442698935,-2535.23,0.00036438,14]
[377563215,1754442698945,-438.71,0.00036438,14]
[377563216,1754442698954,-879.89,0.00036438,14]
[377563217,1754442698964,-831.42,0.00036438,14]
[377563218,1754442698973,-430.36,0.00036438,14]
[377563219,1754442698983,-400.0,0.00036438,14]
[377563220,1754442698992,-638.79,0.00036438,14]
[377563221,1754442699001,-411.62,0.00036438,14]
[377563222,1754442699011,-698.35,0.00036438,14]
[377563223,1754442699020,-1118.12,0.00036438,14]
[377563224,1754442699029,-1093.35,0.00036438,14]
[377563225,1754442699039,-1292.39,0.00036438,14]
[377563226,1754442699049,-1399.9,0.00036438,14]
[377563227,1754442699058,-861.63,0.00036438,14]
[377563228,1754442699067,-832.43,0.00036438,14]
[377563229,1754442699077,-865.54,0.00036438,14]
[377563230,1754442699086,-1672.62,0.00036438,14]
[377563231,1754442699096,-1841.38,0.00036438,14]
[377563232,1754442699105,-766.86,0.00036438,14]
[377563233,1754442699115,-400.0,0.00036438,14]
[377563234,1754442699124,-400.0,0.00036438,14]
[377563235,1754442699134,-2517.68,0.00036438,14]
[377563236,1754442699143,-400.0,0.00036438,14]
[377563237,1754442699152,-828.45,0.00036438,14]
[377563238,1754442699162,-1420.29,0.00036438,14]
[377563239,1754442699171,-400.0,0.00036438,14]
[377563240,1754442699182,-2523.08,0.00036438,14]
[377563241,1754442699191,-1217.7,0.00036438,14]
[377563242,1754442699200,-2391.18,0.00036438,14]
[377563243,1754442699210,-1353.33,0.00036438,14]
[377563244,1754442699219,-4582.75,0.00036438,14]
[377563245,1754442699234,-510.52,0.00036438,14]
[377563246,1754442699243,-1444.34,0.00036438,14]
[377563247,1754442699252,-800.48,0.00036438,14]
[377563248,1754442699262,-3090.38,0.00036438,14]
[377563249,1754442699271,-2122.19,0.00036438,14]
[377563250,1754442699280,-1505.83,0.00036438,14]
[377563251,1754442699290,-400.0,0.00036438,14]
[377563252,1754442699299,-1675.42,0.00036438,14]
[377563253,1754442699308,-415.57,0.00036438,14]
[377563254,1754442699318,-400.0,0.00036438,14]
[377563255,1754442699327,-990.08,0.00036438,14]
[377563256,1754442699337,-400.0,0.00036438,14]
[377563257,1754442699347,-2315.03,0.00036438,14]
[377563258,1754442699356,-2465.39,0.00036438,14]
[377563259,1754442699365,-1639.8,0.00036438,14]
[377563260,1754442699375,-400.0,0.00036438,14]
[377563261,1754442699385,-2484.1,0.00036438,14]
[377563262,1754442699394,-400.0,0.00036438,14]
[377563263,1754442699404,-1134.9,0.00036438,14]
[377563264,1754442699414,-1606.33,0.00036438,14]
[377563265,1754442699423,-2010.04,0.00036438,14]
[377563266,1754442699433,-400.0,0.00036438,14]
[377563267,1754442699443,-300.0,0.00036438,14]
[377563268,1754442699452,-400.0,0.00036438,14]